fUST/lending_fUST_20250713
["ID","MTS","AMOUNT","RATE_DAILY","PERIOD"]
[371538796,1752341457438,-460.0,0.00018082,2]
[371538797,1752341457448,-460.0,0.00018082,2]
[371538798,1752341457457,-460.0,0.00018082,2]
[371538799,1752341457467,-460.0,0.00018082,2]
[371538800,1752341457476,-460.0,0.00018082,2]
[371538801,1752341457486,-460.0,0.00018082,2]
[371538802,1752341457495,-460.0,0.00018082,2]
[371538803,1752341457505,-855.52,0.00018082,2]
[371538804,1752341457515,-460.0,0.00018082,2]
[371538805,1752341457528,-460.0,0.00018082,2]
[371538806,1752341457538,-1595.36,0.00018082,2]
[371538807,1752341457547,-1455.86,0.00018082,2]
[371538808,1752341457557,-460.0,0.00018082,2]
[371538809,1752341457569,-460.0,0.00018082,2]
[371538810,1752341457579,-460.0,0.00018082,2]
[371538811,1752341457589,-460.0,0.00018082,2]
[371538812,1752341457599,-460.0,0.00018082,2]
[371538813,1752341457610,-3548.65,0.00018082,2]
[371538814,1752341457622,-460.0,0.00018082,2]
[371538815,1752341457632,-460.0,0.00018082,2]
[371538816,1752341457641,-1600.37,0.00018082,2]
[371538817,1752341457651,-460.0,0.00018082,2]
[371538818,1752341457661,-460.0,0.00018082,2]
[371538819,1752341457670,-460.0,0.00018082,2]
[371538820,1752341457681,-460.0,0.00018082,2]
[371538821,1752341457691,-1889.11,0.00018082,2]
[371538822,1752341457701,-460.0,0.00018082,2]
[371538823,1752341457711,-460.0,0.00018082,2]
[371538824,1752341457721,-576.07,0.00018082,2]
[371538825,1752341457731,-460.0,0.00018082,2]
[371538826,1752341457741,-1377.53,0.00018082,2]
[371538827,1752341457751,-528.16,0.00018082,2]
[371538828,1752341457761,-460.0,0.00018082,2]
[371538829,1752341457770,-460.0,0.00018082,2]
[371538830,1752341457780,-460.0,0.00018082,2]
[371538831,1752341457790,-574.66,0.00018082,2]
[371538832,1752341457799,-460.0,0.00018082,2]
[371538833,1752341457809,-460.0,0.00018082,2]
[371538834,1752341457819,-460.0,0.00018082,2]
[371538835,1752341457828,-460.0,0.00018082,2]
[371538836,1752341457839,-572.58,0.00018082,2]
[371538837,1752341457849,-460.0,0.00018082,2]
[371538838,1752341457858,-520.2,0.00018082,2]
[371538839,1752341457869,-724.22,0.00018082,2]
[371538840,1752341457880,-240.04330725,0.00018082,2]
[371538841,1752341457890,-460.0,0.00018082,2]
[371538842,1752341457899,-460.0,0.00018082,2]
[371538843,1752341457909,-477.98,0.00018082,2]
[371538844,1752341457918,-460.0,0.00018082,2]
[371538845,1752341457928,-460.0,0.00018082,2]
[371538846,1752341457938,-1280.94,0.00018082,2]
[371538847,1752341457948,-460.0,0.00018082,2]
[371538848,1752341457957,-460.0,0.00018082,2]
[371538849,1752341457967,-460.0,0.00018082,2]
[371538850,1752341457977,-1975.66,0.00018082,2]
[371538851,1752341457986,-764.69,0.00018082,2]
[371538852,1752341457996,-822.69,0.00018082,2]
[371538853,1752341458006,-2904.99,0.00018082,2]
[371538854,1752341458016,-460.0,0.00018082,2]
[371538855,1752341458025,-460.0,0.00018082,2]
[371538856,1752341458034,-460.0,0.00018082,2]
[371538857,1752341458044,-717.3,0.00018082,2]
[371538858,1752341458053,-641.87,0.00018082,2]
[371538859,1752341458063,-460.0,0.00018082,2]
[371538860,1752341458073,-615.12,0.00018082,2]
[371538861,1752341458082,-169.70623844,0.00018082,2]
[371538862,1752341458092,-460.0,0.00018082,2]
[371538863,1752341458102,-461.89,0.00018082,2]
[371538864,1752341458112,-472.14,0.00018082,2]
[371538865,1752341458126,-460.0,0.00018082,2]
[371538866,1752341458136,-555.91,0.00018082,2]
[371538867,1752341458145,-460.0,0.00018082,2]
[371538868,1752341458155,-2667.26,0.00018082,2]
[371538869,1752341458165,-460.0,0.00018082,2]
[371538870,1752341458175,-460.0,0.00018082,2]
[371538871,1752341458185,-460.0,0.00018082,2]
[371538872,1752341458195,-460.0,0.00018082,2]
[371538873,1752341458207,-460.0,0.00018082,2]
[371538874,1752341458217,-460.0,0.00018082,2]
[371538875,1752341458226,-491.78,0.00018082,2]
[371538876,1752341458236,-460.0,0.00018082,2]
[371538877,1752341458246,-460.0,0.00018082,2]
[371538878,1752341458256,-645.69,0.00018082,2]
[371538879,1752341458265,-460.0,0.00018082,2]
[371538880,1752341458276,-460.0,0.00018082,2]
[371538881,1752341458285,-460.0,0.00018082,2]
[371538882,1752341458295,-460.0,0.00018082,2]
[371538883,1752341458306,-460.0,0.00018082,2]
[371538884,1752341458316,-505.28,0.00018082,2]
[371538885,1752341458326,-460.0,0.00018082,2]
[371538886,1752341458335,-460.0,0.00018082,2]
[371538887,1752341458345,-460.0,0.00018082,2]
[371538888,1752341458355,-460.0,0.00018082,2]
[371538889,1752341458365,-460.0,0.00018082,2]
[371538890,1752341458376,-460.0,0.00018082,2]
[371538891,1752341458385,-800.93,0.00018082,2]
[371538892,1752341458395,-489.97,0.00018082,2]
[371538893,1752341458405,-460.0,0.00018082,2]
[371538894,1752341458416,-460.0,0.00018082,2]
[371538895,1752341458425,-460.0,0.00018082,2]
[371538896,1752341458437,-460.0,0.00018082,2]
[371538897,1752341458447,-2783.19,0.00018082,2]
[371538898,1752341458594,-460.0,0.00018082,2]
[371538899,1752341458606,-466.62,0.00018082,2]
[371538900,1752341458616,-460.0,0.00018082,2]
[371538901,1752341458626,-1495.63,0.00018082,2]
[371538902,1752341458636,-460.0,0.00018082,2]
[371538903,1752341458646,-460.0,0.00018082,2]
[371538904,1752341458655,-488.38,0.00018082,2]
[371538905,1752341458665,-460.0,0.00018082,2]
[371538906,1752341458674,-4194.76,0.00018082,2]
[371538907,1752341458684,-460.0,0.00018082,2]
[371538908,1752341458693,-460.0,0.00018082,2]
[371538909,1752341458702,-460.0,0.00018082,2]
[371538910,1752341458723,-460.02,0.00018082,2]
[371538911,1752341458734,-1061.05,0.00018082,2]
[371538912,1752341458744,-460.0,0.00018082,2]
[371538913,1752341458754,-460.0,0.00018082,2]
[371538914,1752341458764,-460.0,0.00018082,2]
[371538915,1752341458775,-460.0,0.00018082,2]
[371538916,1752341458785,-647.05,0.00018082,2]
[371538917,1752341458796,-227.331063,0.00018084,2]
[371538918,1752341458805,-1961.7256578,0.00018141,2]
[371538919,1752341458816,-227.331063,0.00018166,2]
[371538920,1752341458826,-214.25614385,0.00018229,2]
[371538921,1752341458836,-215.38668925,0.00018229,2]
[371538922,1752341458846,-160.0,0.00018229,2]
[371538923,1752341458856,-838.37930271,0.00018229,2]
[371538924,1752341458866,-230.64269914,0.00018229,2]
[371538925,1752341458877,-160.0,0.00018229,2]
[371538926,1752341458887,-227.331063,0.00018249,2]
[371538927,1752341458896,-796.7963557,0.00018256,2]
[371538928,1752341458906,-227.331063,0.00018331,2]
[371538929,1752341458917,-500.0,0.00018356,2]
[371538930,1752341458926,-460.0,0.00018356,2]
[371538931,1752341458936,-460.0,0.00018356,2]
[371538932,1752341458946,-460.0,0.00018356,2]
[371538933,1752341458956,-460.0,0.00018356,2]
[371538934,1752341458966,-460.0,0.00018356,2]
[371538935,1752341458975,-460.0,0.00018356,2]
[371538936,1752341458985,-460.0,0.00018356,2]
[371538937,1752341458995,-460.0,0.00018356,2]
[371538938,1752341459006,-460.0,0.00018356,2]
[371538939,1752341459017,-460.0,0.00018356,2]
[371538940,1752341459027,-520.55,0.00018356,2]
[371538941,1752341459036,-460.0,0.00018356,2]
[371538942,1752341459046,-460.0,0.00018356,2]
[371538943,1752341459056,-460.0,0.00018356,2]
[371538944,1752341459065,-667.2,0.00018356,2]
[371538945,1752341459075,-696.16,0.00018356,2]
[371538946,1752341459085,-460.0,0.00018356,2]
[371538947,1752341459094,-460.0,0.00018356,2]
[371538948,1752341459104,-460.0,0.00018356,2]
[371538949,1752341459115,-460.0,0.00018356,2]
[371538950,1752341459126,-706.94,0.00018356,2]
[371538951,1752341459136,-460.0,0.00018356,2]
[371538952,1752341459145,-460.0,0.00018356,2]
[371538953,1752341459155,-460.0,0.00018356,2]
[371538954,1752341459165,-460.0,0.00018356,2]
[371538955,1752341459176,-460.0,0.00018356,2]
[371538956,1752341459187,-460.0,0.00018356,2]
[371538957,1752341459197,-460.0,0.00018356,2]
[371538958,1752341459206,-460.0,0.00018356,2]
[371538959,1752341459216,-692.2,0.00018356,2]
[371538960,1752341459225,-778.38,0.00018356,2]
[371538961,1752341459235,-460.0,0.00018356,2]
[371538962,1752341459246,-460.0,0.00018356,2]
[371538963,1752341459255,-460.0,0.00018356,2]
[371538964,1752341459265,-460.0,0.00018356,2]
[371538965,1752341459274,-460.0,0.00018356,2]
[371538966,1752341459285,-661.3,0.00018356,2]
[371538967,1752341459295,-460.0,0.00018356,2]
[371538968,1752341459305,-460.0,0.00018356,2]
[371538969,1752341459315,-460.0,0.00018356,2]
[371538970,1752341459325,-460.0,0.00018356,2]
[371538971,1752341459336,-460.0,0.00018356,2]
[371538972,1752341459347,-460.0,0.00018356,2]
[371538973,1752341459358,-460.0,0.00018356,2]
[371538974,1752341459367,-502.61726036,0.00018356,2]
[371538975,1752341459379,-5899.36,0.00018356,2]
[371538976,1752341459389,-460.0,0.00018356,2]
[371538977,1752341459398,-1031.76,0.00018356,2]
[371538978,1752341459408,-460.0,0.00018356,2]
[371538979,1752341459417,-460.0,0.00018356,2]
[371538980,1752341459427,-460.0,0.00018356,2]
[371538981,1752341459436,-460.0,0.00018356,2]
[371538982,1752341459446,-460.0,0.00018356,2]
[371538983,1752341459455,-460.0,0.00018356,2]
[371538984,1752341459465,-460.0,0.00018356,2]
[371538985,1752341459475,-460.0,0.00018356,2]
[371538986,1752341459484,-460.0,0.00018356,2]
[371538987,1752341459494,-460.0,0.00018356,2]
[371538988,1752341459504,-460.0,0.00018356,2]
[371538989,1752341459514,-855.52,0.00018356,2]
[371538990,1752341459528,-460.0,0.00018356,2]
[371538991,1752341459538,-460.0,0.00018356,2]
[371538992,1752341459548,-1595.36,0.00018356,2]
[371538993,1752341459559,-460.0,0.00018356,2]
[371538994,1752341459570,-1455.86,0.00018356,2]
[371538995,1752341459581,-460.0,0.00018356,2]
[371538996,1752341459592,-460.0,0.00018356,2]
[371538997,1752341459606,-460.0,0.00018356,2]
[371538998,1752341459615,-460.0,0.00018356,2]
[371538999,1752341459626,-3548.65,0.00018356,2]
[371539000,1752341459636,-460.0,0.00018356,2]
[371539001,1752341459646,-460.0,0.00018356,2]
[371539002,1752341459655,-1600.37,0.00018356,2]
[371539003,1752341459665,-460.0,0.00018356,2]
[371539004,1752341459675,-460.0,0.00018356,2]
[371539005,1752341459684,-460.0,0.00018356,2]
[371539006,1752341459694,-460.0,0.00018356,2]
[371539007,1752341459704,-1889.11,0.00018356,2]
[371539008,1752341459713,-460.0,0.00018356,2]
[371539009,1752341459723,-460.0,0.00018356,2]
[371539010,1752341459732,-576.07,0.00018356,2]
[371539011,1752341459742,-460.0,0.00018356,2]
[371539012,1752341459751,-1377.53,0.00018356,2]
[371539013,1752341459761,-528.16,0.00018356,2]
[371539014,1752341459770,-460.0,0.00018356,2]
[371539015,1752341459780,-460.0,0.00018356,2]
[371539016,1752341459790,-460.0,0.00018356,2]
[371539017,1752341459800,-460.0,0.00018356,2]
[371539018,1752341459810,-574.66,0.00018356,2]
[371539019,1752341459819,-460.0,0.00018356,2]
[371539020,1752341459829,-460.0,0.00018356,2]
[371539021,1752341459838,-460.0,0.00018356,2]
[371539022,1752341459848,-572.58,0.00018356,2]
[371539023,1752341459857,-460.0,0.00018356,2]
[371539024,1752341459867,-520.2,0.00018356,2]
[371539025,1752341459878,-724.22,0.00018356,2]
[371539026,1752341459887,-460.0,0.00018356,2]
[371539027,1752341459897,-460.0,0.00018356,2]
[371539028,1752341459907,-477.98,0.00018356,2]
[371539029,1752341459916,-460.0,0.00018356,2]
[371539030,1752341459926,-460.0,0.00018356,2]
[371539031,1752341459935,-1280.94,0.00018356,2]
[371539032,1752341459945,-460.0,0.00018356,2]
[371539033,1752341459954,-460.0,0.00018356,2]
[371539034,1752341459964,-460.0,0.00018356,2]
[371539035,1752341459982,-1975.66,0.00018356,2]
[371539036,1752341460002,-764.69,0.00018356,2]
[371539037,1752341460022,-822.69,0.00018356,2]
[371539038,1752341460031,-2904.99,0.00018356,2]
[371539039,1752341460042,-460.0,0.00018356,2]
[371539040,1752341460052,-460.0,0.00018356,2]
[371539041,1752341460062,-717.3,0.00018356,2]
[371539042,1752341460072,-641.87,0.00018356,2]
[371539043,1752341460082,-460.0,0.00018356,2]
[371539044,1752341460092,-615.12,0.00018356,2]
[371539045,1752341460103,-461.89,0.00018356,2]
[371539046,1752341460113,-472.14,0.00018356,2]
[371539047,1752341460123,-555.91,0.00018356,2]
[371539048,1752341460133,-460.0,0.00018356,2]
[371539049,1752341460143,-460.0,0.00018356,2]
[371539050,1752341460153,-2667.26,0.00018356,2]
[371539051,1752341460164,-460.0,0.00018356,2]
[371539052,1752341460174,-460.0,0.00018356,2]
[371539053,1752341460184,-460.0,0.00018356,2]
[371539054,1752341460193,-460.0,0.00018356,2]
[371539055,1752341460202,-460.0,0.00018356,2]
[371539056,1752341460214,-460.0,0.00018356,2]
[371539057,1752341460223,-491.78,0.00018356,2]
[371539058,1752341460235,-460.0,0.00018356,2]
[371539059,1752341460246,-460.0,0.00018356,2]
[371539060,1752341460255,-645.69,0.00018356,2]
[371539061,1752341460264,-460.0,0.00018356,2]
[371539062,1752341460274,-460.0,0.00018356,2]
[371539063,1752341460284,-460.0,0.00018356,2]
[371539064,1752341460293,-460.0,0.00018356,2]
[371539065,1752341460303,-460.0,0.00018356,2]
[371539066,1752341460314,-505.28,0.00018356,2]
[371539067,1752341460323,-460.0,0.00018356,2]
[371539068,1752341460333,-460.0,0.00018356,2]
[371539069,1752341460342,-460.0,0.00018356,2]
[371539070,1752341460352,-460.0,0.00018356,2]
[371539071,1752341460362,-460.0,0.00018356,2]
[371539072,1752341460371,-460.0,0.00018356,2]
[371539073,1752341460382,-800.93,0.00018356,2]
[371539074,1752341460392,-460.0,0.00018356,2]
[371539075,1752341460402,-460.0,0.00018356,2]
[371539076,1752341460411,-489.97,0.00018356,2]
[371539077,1752341460420,-460.0,0.00018356,2]
[371539078,1752341460430,-460.0,0.00018356,2]
[371539079,1752341460439,-2783.19,0.00018356,2]
[371539080,1752341460450,-460.0,0.00018356,2]
[371539081,1752341460459,-466.62,0.00018356,2]
[371539082,1752341460469,-460.0,0.00018356,2]
[371539083,1752341460479,-1495.63,0.00018356,2]
[371539084,1752341460490,-460.0,0.00018356,2]
[371539085,1752341460500,-460.0,0.00018356,2]
[371539086,1752341460510,-488.38,0.00018356,2]
[371539087,1752341460521,-460.0,0.00018356,2]
[371539088,1752341460643,-4194.76,0.00018356,2]
[371539089,1752341460654,-460.0,0.00018356,2]
[371539090,1752341460663,-460.0,0.00018356,2]
[371539091,1752341460673,-460.0,0.00018356,2]
[371539092,1752341460683,-460.02,0.00018356,2]
[371539093,1752341460693,-1061.05,0.00018356,2]
[371539094,1752341460702,-460.0,0.00018356,2]
[371539095,1752341460711,-460.0,0.00018356,2]
[371539096,1752341460721,-460.0,0.00018356,2]
[371539097,1752341460731,-647.05,0.00018356,2]
[371539098,1752341460740,-1961.7256578,0.00018383,2]
[371539099,1752341460750,-1500.0,0.00018396,2]
[371539100,1752341460759,-1500.0,0.00018396,2]
[371539101,1752341460769,-151.0,0.000184,2]
[371539102,1752341460778,-857.4953208,0.00018411,2]
[371539103,1752341460788,-227.331063,0.00018413,2]
[371539104,1752341460798,-1500.0,0.00018443,2]
[371539105,1752341460807,-1500.0,0.00018443,2]
[371539106,1752341460816,-1500.0,0.00018443,2]
[371539107,1752341460826,-227.331063,0.00018495,2]
[371539108,1752341460835,-227.331063,0.00018577,2]
[371539109,1752341460844,-151.0,0.000186,2]
[371539110,1752341460853,-1961.7256578,0.00018624,2]
[371539111,1752341460865,-500.0,0.0001863,2]
[371539112,1752341460874,-460.0,0.0001863,2]
[371539113,1752341460889,-460.0,0.0001863,2]
[371539114,1752341460898,-460.0,0.0001863,2]
[371539115,1752341460908,-460.0,0.0001863,2]
[371539116,1752341460917,-460.0,0.0001863,2]
[371539117,1752341460927,-460.0,0.0001863,2]
[371539118,1752341460936,-460.0,0.0001863,2]
[371539119,1752341460945,-460.0,0.0001863,2]
[371539120,1752341460955,-460.0,0.0001863,2]
[371539121,1752341460964,-520.55,0.0001863,2]
[371539122,1752341460975,-460.0,0.0001863,2]
[371539123,1752341460985,-460.0,0.0001863,2]
[371539124,1752341460994,-460.0,0.0001863,2]
[371539125,1752341461004,-667.2,0.0001863,2]
[371539126,1752341461014,-696.16,0.0001863,2]
[371539127,1752341461023,-460.0,0.0001863,2]
[371539128,1752341461033,-446.5102063,0.0001863,2]
[371539129,1752341461042,-460.0,0.0001863,2]
[371539130,1752341461052,-460.0,0.0001863,2]
[371539131,1752341461061,-706.94,0.0001863,2]
[371539132,1752341461070,-460.0,0.0001863,2]
[371539133,1752341461080,-460.0,0.0001863,2]
[371539134,1752341461089,-460.0,0.0001863,2]
[371539135,1752341461098,-460.0,0.0001863,2]
[371539136,1752341461107,-460.0,0.0001863,2]
[371539137,1752341461117,-460.0,0.0001863,2]
[371539138,1752341461129,-460.0,0.0001863,2]
[371539139,1752341461139,-460.0,0.0001863,2]
[371539140,1752341461148,-692.2,0.0001863,2]
[371539141,1752341461158,-778.38,0.0001863,2]
[371539142,1752341461168,-460.0,0.0001863,2]
[371539143,1752341461178,-460.0,0.0001863,2]
[371539144,1752341461188,-460.0,0.0001863,2]
[371539145,1752341461197,-661.3,0.0001863,2]
[371539146,1752341461207,-460.0,0.0001863,2]
[371539147,1752341461218,-460.0,0.0001863,2]
[371539148,1752341461227,-460.0,0.0001863,2]
[371539149,1752341461237,-460.0,0.0001863,2]
[371539150,1752341461246,-460.0,0.0001863,2]
[371539151,1752341461256,-5899.36,0.0001863,2]
[371539152,1752341461265,-460.0,0.0001863,2]
[371539153,1752341461275,-1031.76,0.0001863,2]
[371539154,1752341461285,-460.0,0.0001863,2]
[371539155,1752341461295,-460.0,0.0001863,2]
[371539156,1752341461304,-460.0,0.0001863,2]
[371539157,1752341461314,-460.0,0.0001863,2]
[371539158,1752341461323,-460.0,0.0001863,2]
[371539159,1752341461333,-460.0,0.0001863,2]
[371539160,1752341461342,-492.43919267,0.0001863,2]
[371539161,1752341461351,-460.0,0.0001863,2]
[371539162,1752341461361,-460.0,0.0001863,2]
[371539163,1752341461370,-855.52,0.0001863,2]
[371539164,1752341461381,-460.0,0.0001863,2]
[371539165,1752341461391,-460.0,0.0001863,2]
[371539166,1752341461400,-460.0,0.0001863,2]
[371539167,1752341461410,-1595.36,0.0001863,2]
[371539168,1752341461419,-460.0,0.0001863,2]
[371539169,1752341461429,-1455.86,0.0001863,2]
[371539170,1752341461438,-460.0,0.0001863,2]
[371539171,1752341461448,-460.0,0.0001863,2]
[371539172,1752341461458,-460.0,0.0001863,2]
[371539173,1752341461467,-460.0,0.0001863,2]
[371539174,1752341461477,-3548.65,0.0001863,2]
[371539175,1752341461487,-460.0,0.0001863,2]
[371539176,1752341461496,-460.0,0.0001863,2]
[371539177,1752341461506,-1600.37,0.0001863,2]
[371539178,1752341461515,-460.0,0.0001863,2]
[371539179,1752341461527,-460.0,0.0001863,2]
[371539180,1752341461537,-460.0,0.0001863,2]
[371539181,1752341461546,-1889.11,0.0001863,2]
[371539182,1752341461555,-460.0,0.0001863,2]
[371539183,1752341461564,-460.0,0.0001863,2]
[371539184,1752341461574,-576.07,0.0001863,2]
[371539185,1752341461583,-1377.53,0.0001863,2]
[371539186,1752341461593,-528.16,0.0001863,2]
[371539187,1752341461603,-460.0,0.0001863,2]
[371539188,1752341461612,-460.0,0.0001863,2]
[371539189,1752341461622,-460.0,0.0001863,2]
[371539190,1752341461635,-445.92,0.0001863,2]
[371539191,1752341461645,-574.66,0.0001863,2]
[371539192,1752341461654,-460.0,0.0001863,2]
[371539193,1752341461664,-460.0,0.0001863,2]
[371539194,1752341461673,-460.0,0.0001863,2]
[371539195,1752341461683,-572.58,0.0001863,2]
[371539196,1752341461692,-460.0,0.0001863,2]
[371539197,1752341461702,-520.2,0.0001863,2]
[371539198,1752341461712,-724.22,0.0001863,2]
[371539199,1752341461721,-460.0,0.0001863,2]
[371539200,1752341461730,-460.0,0.0001863,2]
[371539201,1752341461739,-477.98,0.0001863,2]
[371539202,1752341461749,-460.0,0.0001863,2]
[371539203,1752341461759,-460.0,0.0001863,2]
[371539204,1752341461768,-1280.94,0.0001863,2]
[371539205,1752341461777,-460.0,0.0001863,2]
[371539206,1752341461787,-460.0,0.0001863,2]
[371539207,1752341461801,-460.0,0.0001863,2]
[371539208,1752341461810,-1975.66,0.0001863,2]
[371539209,1752341461819,-764.69,0.0001863,2]
[371539210,1752341461832,-822.69,0.0001863,2]
[371539211,1752341461842,-2904.99,0.0001863,2]
[371539212,1752341461852,-460.0,0.0001863,2]
[371539213,1752341461861,-460.0,0.0001863,2]
[371539214,1752341461871,-717.3,0.0001863,2]
[371539215,1752341461884,-641.87,0.0001863,2]
[371539216,1752341461894,-460.0,0.0001863,2]
[371539217,1752341461903,-615.12,0.0001863,2]
[371539218,1752341461912,-461.89,0.0001863,2]
[371539219,1752341461922,-472.14,0.0001863,2]
[371539220,1752341461931,-555.91,0.0001863,2]
[371539221,1752341461941,-460.0,0.0001863,2]
[371539222,1752341461951,-460.0,0.0001863,2]
[371539223,1752341461960,-2667.26,0.0001863,2]
[371539224,1752341461970,-460.0,0.0001863,2]
[371539225,1752341461980,-460.0,0.0001863,2]
[371539226,1752341461989,-460.0,0.0001863,2]
[371539227,1752341461999,-460.0,0.0001863,2]
[371539228,1752341462008,-460.0,0.0001863,2]
[371539229,1752341462018,-491.78,0.0001863,2]
[371539230,1752341462027,-460.0,0.0001863,2]
[371539231,1752341462036,-460.0,0.0001863,2]
[371539232,1752341462046,-645.69,0.0001863,2]
[371539233,1752341462055,-460.0,0.0001863,2]
[371539234,1752341462064,-339.23679268,0.0001863,2]
[371539235,1752341462073,-460.0,0.0001863,2]
[371539236,1752341462083,-460.0,0.0001863,2]
[371539237,1752341462093,-460.0,0.0001863,2]
[371539238,1752341462102,-505.28,0.0001863,2]
[371539239,1752341462111,-460.0,0.0001863,2]
[371539240,1752341462121,-460.0,0.0001863,2]
[371539241,1752341462133,-460.0,0.0001863,2]
[371539242,1752341462142,-460.0,0.0001863,2]
[371539243,1752341462152,-460.0,0.0001863,2]
[371539244,1752341462161,-460.0,0.0001863,2]
[371539245,1752341462171,-800.93,0.0001863,2]
[371539246,1752341462180,-460.0,0.0001863,2]
[371539247,1752341462190,-489.97,0.0001863,2]
[371539248,1752341462200,-460.0,0.0001863,2]
[371539249,1752341462209,-460.0,0.0001863,2]
[371539250,1752341462219,-460.0,0.0001863,2]
[371539251,1752341462228,-2783.19,0.0001863,2]
[371539252,1752341462237,-460.0,0.0001863,2]
[371539253,1752341462247,-466.62,0.0001863,2]
[371539254,1752341462256,-460.0,0.0001863,2]
[371539255,1752341462265,-460.0,0.0001863,2]
[371539256,1752341462275,-1495.63,0.0001863,2]
[371539257,1752341462285,-460.0,0.0001863,2]
[371539258,1752341462294,-488.38,0.0001863,2]
[371539259,1752341462303,-460.0,0.0001863,2]
[371539260,1752341462313,-4194.76,0.0001863,2]
[371539261,1752341462323,-460.0,0.0001863,2]
[371539262,1752341462333,-460.0,0.0001863,2]
[371539263,1752341462342,-179.07827658,0.0001863,2]
[371539264,1752341462446,-460.02,0.0001863,2]
[371539265,1752341462456,-1061.05,0.0001863,2]
[371539266,1752341462466,-460.0,0.0001863,2]
[371539267,1752341462475,-460.0,0.0001863,2]
[371539268,1752341462484,-460.0,0.0001863,2]
[371539269,1752341462495,-647.05,0.0001863,2]
[371539270,1752341462505,-227.331063,0.0001866,2]
[371539271,1752341462515,-227.331063,0.00018742,2]
[371539272,1752341462527,-253.09215503,0.00018788,2]
[371539273,1752341462536,-796.7963557,0.00018804,2]
[371539274,1752341462545,-1961.7256578,0.00018866,2]
[371539275,1752341462556,-151.0,0.000189,2]
[371539276,1752341462567,-679.9689388,0.000189,2]
[371539277,1752341462577,-500.0,0.00018904,2]
[371539278,1752341462588,-460.0,0.00018904,2]
[371539279,1752341462601,-460.0,0.00018904,2]
[371539280,1752341462612,-460.0,0.00018904,2]
[371539281,1752341462625,-460.0,0.00018904,2]
[371539282,1752341462636,-460.0,0.00018904,2]
[371539283,1752341462646,-460.0,0.00018904,2]
[371539284,1752341462656,-520.55,0.00018904,2]
[371539285,1752341462666,-460.0,0.00018904,2]
[371539286,1752341462677,-460.0,0.00018904,2]
[371539287,1752341462686,-460.0,0.00018904,2]
[371539288,1752341462696,-667.2,0.00018904,2]
[371539289,1752341462706,-696.16,0.00018904,2]
[371539290,1752341462716,-460.0,0.00018904,2]
[371539291,1752341462726,-460.0,0.00018904,2]
[371539292,1752341462736,-460.0,0.00018904,2]
[371539293,1752341462748,-706.94,0.00018904,2]
[371539294,1752341462758,-460.0,0.00018904,2]
[371539295,1752341462768,-460.0,0.00018904,2]